bitfinex/quotes_ETHUSD_20240709
["timestamp","ask_amount","ask_price","bid_price","bid_amount"]
[1720510762657,3.34042868,3073.0,3072.8,3.25435]
[1720510762819,0.34042868,3073.0,3072.8,3.25435]
[1720510763014,0.34042868,3073.0,3072.9,3.25425]
[1720510764527,0.34042868,3073.0,3072.9,6.5085]
[1720510765347,0.34042868,3073.0,3072.0,5.71271]
[1720510765348,1.46796481,3073.0,3072.0,5.71271]
[1720510765554,1.46796481,3073.0,3072.7,3.2544]
[1720510765555,0.34042868,3073.0,3072.7,3.2544]
[1720510765708,1.12757152,3072.9,3072.7,3.2544]
[1720510765913,0.34042868,3073.0,3072.7,3.2544]
[1720510766146,1.12757587,3072.9,3072.7,3.2544]
[1720510766346,0.34042868,3073.0,3072.7,6.50878]
[1720510766511,0.34042868,3073.0,3072.8,3.25436]
[1720510766716,1.12752422,3072.9,3072.8,3.25436]
[1720510767146,0.34042868,3073.0,3072.9,3.25425]
[1720510767348,1.46794423,3073.0,3072.7,3.25438]
[1720510767567,1.12751555,3072.9,3072.7,3.25438]
[1720510767862,1.12751555,3072.9,3072.8,3.25433]
[1720510768011,0.34042868,3073.0,3072.9,3.25425]
[1720510768637,0.34042868,3073.0,3072.9,7.159363]
[1720510769119,7.36,3073.5,3073.4,6.50744]
[1720510769317,7.36,3074.0,3073.6,3.25348]
[1720510769539,1.12721658,3073.9,3073.6,6.50693]
[1720510769744,1.12721658,3073.8,3073.6,3.25345]
[1720510769944,7.36,3074.0,3073.6,3.25345]
[1720510770145,1.12720415,3073.9,3073.7,3.2534]
[1720510770359,7.36,3074.0,3073.7,3.2534]
[1720510770656,1.1271924,3073.9,3073.6,3.25345]
[1720510770823,1.1271924,3073.9,3073.6,3.25343]
[1720510771025,7.36,3074.0,3073.6,3.25343]
[1720510771333,7.36,3074.0,3073.7,3.25339]
[1720510772032,7.36,3074.0,3073.8,3.2533]
[1720510772232,12.319,3074.3,3073.8,3.2533]
[1720510772457,4.12710967,3074.2,3073.6,3.25343]
[1720510772627,1.12710967,3074.1,3073.4,3.25364]
[1720510773020,1.12710967,3074.1,3073.4,6.50728]
[1720510773226,1.12710967,3074.1,3073.5,2.81359]
[1720510773577,0.03599398,3074.0,3073.5,2.81359]
[1720510773744,1.12710967,3073.9,3073.5,2.81359]
[1720510773947,0.03598636,3073.8,3073.5,2.81359]
[1720510774254,1.19408761,3074.1,3073.5,2.81359]
[1720510774567,5.21275,3073.4,3072.4,3.2547]
[1720510774871,3.25406,3073.1,3072.2,3.25497]
[1720510775032,3.325406,3073.0,3072.2,3.25491]
[1720510775236,3.3612988,3073.0,3072.5,3.25466]
[1720510775779,0.3612988,3073.0,3072.5,3.25466]
[1720510776135,0.0358928,3073.0,3072.6,3.25454]
[1720510776529,0.0358928,3073.0,3072.4,3.25473]
[1720510776734,0.0358928,3073.0,3072.7,3.2544]
[1720510776969,0.0358928,3073.0,3072.7,6.50878]
[1720510777146,0.0358928,3073.0,3072.7,3.25438]
[1720510777478,0.0358928,3073.0,3072.9,3.25425]
[1720510777979,5.253,3073.6,3073.0,3.25412]
[1720510778134,1.12746074,3073.5,3073.0,3.25412]
[1720510778328,1.12746074,3073.4,3073.0,3.25412]
[1720510778532,1.12746074,3073.3,3073.0,3.25412]
[1720510778733,0.96339907,3073.4,3073.0,3.25412]
[1720510778933,1.12741149,3073.3,3073.0,3.25412]
[1720510779160,0.96339907,3073.4,3073.0,3.25412]
[1720510779378,1.12741926,3073.3,3073.1,3.25404]
[1720510779577,3.0,3073.5,3073.2,3.25391]
[1720510779748,1.12739741,3073.4,3073.2,3.25391]
[1720510779947,7.36,3074.1,3073.9,3.25309]
[1720510780147,7.36,3074.5,3073.9,3.25309]
[1720510780468,2.18804333,3074.4,3074.0,3.25305]
[1720510780655,1.12704333,3074.3,3074.0,3.25305]
[1720510780865,1.061,3074.4,3074.0,3.25305]
[1720510781468,0.40897155,3075.2,3074.0,2.46]
[1720510781469,7.36,3074.9,3074.0,2.46]
[1720510781656,2.54687181,3074.8,3074.4,3.25258]
[1720510781858,1.12693443,3074.7,3074.2,3.2528]
[1720510782192,0.34030237,3074.7,3074.4,3.25265]
[1720510782843,0.34030237,3074.7,3074.6,6.5049]
[1720510783169,0.34030237,3074.7,3074.6,6.56993761]
[1720510783368,0.34030237,3074.7,3074.6,9.75735]
[1720510784076,0.34030237,3074.7,3074.6,3.25245]
[1720510784285,0.34030237,3074.7,3074.5,3.25248]
[1720510784446,0.34030237,3074.7,3074.4,3.25263]
[1720510784989,0.34030237,3074.7,3074.5,3.25255]
[1720510785384,0.34030237,3074.7,3074.6,9.47506319]
[1720510785545,0.34030237,3074.7,3074.6,8.7595]
[1720510785749,0.34030237,3074.7,3074.6,12.01195]
[1720510786487,0.34030237,3074.7,3074.6,8.7595]
[1720510787448,0.34030237,3074.7,3074.6,6.5049]
[1720510787649,0.34030237,3074.7,3074.6,3.25245]
[1720510787963,0.34030237,3074.7,3074.6,6.5049]
[1720510788296,0.37219951,3074.7,3074.6,6.5049]
[1720510788814,0.34030237,3074.7,3074.6,3.25245]
[1720510789159,0.34030237,3074.7,3074.6,6.5049]
[1720510789467,0.34030237,3074.7,3074.5,3.25255]
[1720510789897,0.03196691,3074.6,3074.5,3.25255]
[1720510790114,0.03196691,3074.6,3074.4,3.25266]
[1720510790289,0.34030237,3074.7,3074.4,3.25266]
[1720510790603,0.34030237,3074.7,3073.6,5.3025]
[1720510790604,0.34030237,3074.7,3073.6,2.3025]
[1720510790767,3.25268,3074.4,3073.5,3.25354]
[1720510790972,0.325268,3074.3,3073.5,3.25354]
[1720510791199,3.35709192,3074.3,3073.5,3.25354]
[1720510791498,0.35709192,3074.3,3073.1,3.25396]
[1720510791676,0.35709192,3074.3,3073.5,3.2536]
[1720510791859,0.03182392,3074.3,3073.5,3.2536]
[1720510792207,0.34029791,3074.2,3073.5,6.50713]
[1720510792495,0.37198223,3074.2,3073.5,3.25353]
[1720510792672,0.66247522,3074.1,3073.5,3.25353]
[1720510792875,0.69415573,3074.1,3073.5,3.25353]
[1720510793998,0.69415573,3074.1,3073.1,3.25399]
[1720510793999,3.2532,3073.9,3073.1,3.25399]
[1720510794429,0.03167163,3073.8,3073.1,3.25395]
[1720510794588,3.35699163,3073.8,3073.1,3.25395]
[1720510794984,6.61030163,3073.8,3072.9,3.25417]
[1720510795186,4.23977016,3073.7,3072.3,2.4106]
[1720510795423,3.25374,3073.4,3072.5,3.25467]
[1720510795588,3.25374,3073.4,3072.6,3.25456]
[1720510795589,4.25807711,3073.4,3072.6,3.25456]
[1720510795793,3.03128957,3073.3,3072.6,3.25456]
[1720510797192,3.03128957,3073.3,3072.7,3.25446]
[1720510797929,3.76022624,3073.3,3072.4,6.50946]
[1720510798103,3.76022624,3073.3,3072.4,3.25471]
[1720510798590,3.25394,3073.2,3072.4,3.25471]
[1720510798800,3.28522069,3073.2,3072.4,3.25471]
[1720510799310,0.03128069,3073.2,3072.5,3.25467]
[1720510800209,0.83311214,3073.2,3072.5,3.25467]
[1720510800622,4.08705214,3073.2,3072.5,3.25467]
[1720510800943,3.25422,3073.0,3072.2,3.25499]
[1720510801245,0.03127941,3072.9,3072.2,3.25499]
[1720510801411,0.03127941,3072.9,3072.4,3.25473]
[1720510801608,3.25394,3073.2,3072.5,3.25464]
[1720510801802,0.03127687,3072.8,3072.5,3.25464]
[1720510802004,3.25394,3073.2,3072.5,3.25464]
[1720510802313,0.03126291,3072.7,3072.5,3.25464]
[1720510802520,3.72893667,3073.3,3072.5,3.25464]
[1720510803203,0.03129337,3073.2,3072.5,3.25464]
[1720510803638,0.03129337,3073.2,3072.6,3.25454]
[1720510804224,3.28523337,3073.2,3072.2,3.9794188]
[1720510804445,3.25423,3073.0,3072.2,3.25495]
[1720510804648,3.0,3072.9,3072.2,3.25495]
[1720510804936,3.99414091,3072.9,3072.2,3.25489]
[1720510805104,3.99414091,3072.9,3072.4,3.25469]
[1720510805105,0.03111561,3072.9,3072.4,3.25469]
[1720510805496,0.03111561,3072.9,3072.5,3.25461]
[1720510805701,0.376023,3073.1,3072.6,3.25456]
[1720510805915,0.03109405,3072.8,3072.6,3.25456]
[1720510806144,6.98276667,3073.3,3072.6,3.25456]
[1720510806305,0.03110214,3072.7,3072.6,3.25456]
[1720510806501,6.98276667,3073.3,3072.6,3.25456]
[1720510806712,0.03110214,3072.7,3072.6,3.25456]
[1720510806935,0.89417667,3073.2,3072.6,3.25456]
[1720510807238,0.34032337,3072.7,3072.6,3.25456]
[1720510807610,0.03110214,3072.7,3072.6,3.25456]
[1720510807816,0.34032337,3072.7,3072.6,3.25456]
[1720510808122,0.37142551,3072.7,3072.6,3.25456]
[1720510808445,0.37142551,3072.7,3071.6,4.95653]
[1720510808446,0.37142551,3072.7,3072.2,3.25496]
[1720510808603,0.37142551,3072.7,3072.2,3.2549]
[1720510809243,0.37142551,3072.7,3072.2,3.25493]
[1720510809911,0.37142551,3072.7,3072.0,3.25512]
[1720510810109,0.37142551,3072.7,3072.0,6.51025]
[1720510810422,3.25479,3072.4,3071.6,3.25561]
[1720510810722,3.0,3072.3,3071.6,3.25554]
[1720510810950,3.03080447,3072.3,3071.6,3.25554]
[1720510811460,0.03080447,3072.3,3071.7,0.06510137]
[1720510811762,7.36,3072.6,3072.5,3.25467]
[1720510812090,7.36,3073.1,3072.7,3.25436]
[1720510812366,7.36,3073.1,3072.9,3.25418]
[1720510813047,7.36,3073.6,3073.3,3.25382]
[1720510813241,7.36,3074.0,3073.4,3.579092]
[1720510813445,7.36,3074.0,3073.4,3.25371]
[1720510813870,3.25347,3073.7,3072.9,3.2542]
[1720510814073,1.959,3073.7,3072.7,3.25441]
[1720510814380,1.959,3073.7,3072.3,3.25483]
[1720510814381,3.2539,3073.3,3072.3,3.25483]
[1720510814534,3.2541,3073.1,3072.3,3.25488]
[1720510814956,0.34038657,3073.0,3072.3,3.25488]
[1720510815271,0.35944866,3072.9,3072.1,3.25503]
[1720510815469,0.35944866,3072.9,3072.2,3.25489]
[1720510815672,0.36998352,3072.8,3072.3,3.25486]
[1720510815829,0.36998352,3072.8,3072.1,3.25503]
[1720510816033,0.36998352,3072.8,3071.8,3.25539]
[1720510816234,0.39837022,3072.7,3071.8,3.25539]
[1720510816467,3.65293022,3072.7,3071.8,3.25535]
[1720510816671,0.39837022,3072.7,3072.0,3.25513]
[1720510817035,3.39837022,3072.7,3072.1,3.25508]
[1720510817230,0.39837022,3072.7,3072.1,3.25508]
[1720510817830,3.61377866,3072.9,3072.1,3.32017312]
[1720510818057,3.0,3072.8,3072.1,3.32017312]
[1720510818422,3.03074982,3072.8,3072.2,6.50987]
[1720510818616,0.03074982,3072.8,3072.6,3.25456]
[1720510818766,0.34038657,3073.0,3072.6,6.50903]
[1720510818965,0.34038657,3073.0,3072.6,6.50898]
[1720510819221,0.03081099,3072.9,3072.6,3.25447]
[1720510819365,0.03081099,3072.9,3072.3,0.65749631]
[1720510819366,0.03081099,3072.9,3072.4,3.25469]
[1720510820408,1.12933675,3072.9,3072.5,3.25459]
[1720510820619,0.03081099,3072.9,3071.9,0.06508682]
[1720510820819,0.03081099,3072.9,3071.7,2.3289]
[1720510820820,1.1275452,3072.8,3072.2,3.25497]
[1720510820969,0.03081099,3072.9,3072.2,6.50989]
[1720510821325,1.52101552,3072.8,3072.2,3.25492]
[1720510821610,1.12757405,3072.7,3072.2,3.25492]
[1720510821811,1.12757405,3072.7,3072.0,3.25518]
[1720510821812,4.15847249,3072.7,3072.0,3.25518]
[1720510821972,1.87967548,3072.6,3072.0,3.25517]
[1720510822176,1.15844709,3072.5,3072.0,6.51029]
[1720510822373,1.12768546,3072.4,3072.0,3.25512]
[1720510822617,0.03083239,3072.3,3072.0,3.25512]
[1720510822799,0.70066214,3072.5,3072.0,3.25512]
[1720510823003,1.1585215,3072.4,3072.0,3.25512]
[1720510823185,0.0308362,3072.4,3072.0,3.25512]
[1720510823396,1.1277008,3072.3,3072.0,3.25512]
[1720510823584,0.03082857,3072.2,3071.3,2.4387]
[1720510823787,0.37006621,3072.4,3071.7,3.2555]
[1720510824011,1.12774621,3072.1,3071.7,3.2555]
[1720510824327,1.12780412,3072.0,3071.7,3.2555]
[1720510824488,0.03070282,3072.0,3071.7,3.2555]
[1720510824695,1.2759234,3072.3,3071.7,3.2555]
[1720510824913,0.03070789,3071.9,3071.5,3.25567]
[1720510825119,4.2759234,3072.3,3071.5,3.25567]
[1720510825341,0.03070408,3071.8,3071.3,3.25587]
[1720510825541,3.46459896,3072.2,3071.3,3.25586]
[1720510825702,0.03070027,3071.7,3071.3,3.25586]
[1720510825918,0.28683904,3072.1,3071.3,3.25586]
[1720510826121,0.03069645,3071.6,3071.3,3.25586]
[1720510826432,0.03069264,3071.5,3071.4,3.25584]
[1720510826636,7.36,3072.0,3071.4,3.25584]
[1720510826945,7.36,3072.0,3071.6,3.2556]
[1720510827127,1.12787721,3071.9,3071.6,3.2556]
[1720510827453,7.36,3072.0,3071.6,3.2556]
[1720510827752,1.12788082,3071.9,3071.6,3.2556]
[1720510828042,7.36,3072.0,3071.6,3.2556]
[1720510828251,1.12789846,3071.9,3071.4,3.25584]
[1720510828438,7.36,3072.0,3071.4,3.25584]
[1720510828751,1.12792013,3071.9,3071.5,3.25571]
[1720510828910,1.12792013,3071.9,3071.2,3.25596]
[1720510829110,7.36,3072.0,3071.1,3.25616]
[1720510829452,1.97670866,3071.9,3071.1,3.25616]
[1720510829748,1.12791665,3071.8,3071.2,3.25603]
[1720510830142,0.84879201,3071.9,3071.2,3.25603]
[1720510830444,1.12795577,3071.8,3071.2,3.25603]
[1720510830645,1.12798944,3071.7,3071.2,3.25603]
[1720510830850,3.84879201,3071.9,3071.2,3.25603]
[1720510831051,1.12797404,3071.8,3071.2,3.25603]
[1720510831229,3.84879201,3071.9,3071.2,3.25599]
[1720510831545,1.12796655,3071.8,3071.2,3.25599]
[1720510831864,1.12802752,3071.7,3071.2,3.25599]
[1720510832041,3.84879201,3071.9,3071.2,3.25599]
[1720510832230,1.12799804,3071.8,3071.2,3.25599]
[1720510832532,1.12799972,3071.7,3071.0,3.25622]
[1720510832734,3.6627207,3071.8,3071.1,3.25614]
[1720510832921,1.12805022,3071.7,3071.1,3.25614]
[1720510833475,0.06396554,3071.6,3071.1,3.25614]
[1720510833761,0.54943919,3071.6,3070.8,3.25646]
[1720510833961,0.54943919,3071.6,3070.8,6.57798829]
[1720510834161,0.54943919,3071.6,3070.9,3.25637]
[1720510834946,0.54943919,3071.6,3070.6,3.25663]
[1720510835140,1.1281716,3071.5,3070.8,3.25645]
[1720510835347,0.46776108,3071.5,3070.8,3.32157069]
[1720510835540,0.06395809,3071.4,3070.8,3.32157069]
[1720510835942,0.06395809,3071.4,3070.8,3.25645]
[1720510836355,0.06395809,3071.4,3070.8,0.0651207]
[1720510836559,0.06395809,3071.4,3071.1,3.25613]
[1720510836760,3.0,3071.7,3071.1,3.581743]
[1720510837037,2.395,3071.8,3071.1,3.64685897]
[1720510837244,0.06387393,3071.6,3071.2,3.25602]
[1720510837446,3.0,3071.9,3071.3,3.25593]
[1720510837633,3.0,3071.9,3071.4,3.25584]
[1720510837634,0.06387121,3071.5,3071.4,3.25584]
[1720510837836,3.0,3071.9,3071.6,3.25562]
[1720510838033,7.36,3072.0,3071.8,3.25537]
[1720510838671,7.36,3072.0,3071.9,6.51062]
[1720510840179,7.36,3072.0,3071.9,3.25531]
[1720510840337,7.36,3072.0,3071.8,3.25536]
[1720510840537,7.36,3072.0,3071.7,3.25549]
[1720510840746,5.259,3073.0,3071.7,3.581039]
[1720510840747,7.36,3072.3,3071.7,3.581039]
[1720510840951,7.36,3072.3,3071.9,3.25531]
[1720510845364,7.36,3072.3,3071.7,3.581039]
[1720510845740,7.36,3072.3,3072.1,3.25508]
[1720510845945,7.36,3072.3,3072.2,3.25499]
[1720510846285,7.36,3072.3,3072.2,7.160987]
[1720510846495,7.36,3072.3,3072.2,6.50998]
[1720510846686,6.18051997,3073.4,3072.5,3.25461]
[1720510846687,7.36,3073.3,3072.5,3.25461]
[1720510846856,3.90230846,3073.2,3072.5,6.5092]
[1720510847050,2.54830617,3073.1,3072.6,3.25456]
[1720510847296,2.54830617,3073.0,3072.6,3.25456]
[1720510847592,2.54830617,3072.9,3072.6,3.25456]
[1720510847750,0.86750928,3073.1,3072.6,3.25456]
[1720510848098,2.54818546,3073.0,3072.6,3.25456]
[1720510848394,2.54818546,3072.9,3072.6,3.25456]
[1720510848601,0.06030781,3073.0,3072.6,3.25456]
[1720510848770,0.06030238,3072.8,3072.6,3.25456]
[1720510848967,0.86750928,3073.1,3072.6,3.25456]
[1720510849168,0.06029966,3072.7,3072.6,3.25456]
[1720510849397,3.0,3073.1,3072.6,3.25456]
[1720510849597,0.06029153,3072.7,3072.6,3.25456]
[1720510849783,1.69441279,3073.2,3072.6,3.25456]
[1720510849983,0.06030057,3072.7,3072.6,3.25456]
[1720510850295,0.06030147,3072.7,3072.6,3.25456]
[1720510850469,0.46944128,3073.1,3072.5,3.31967614]
[1720510850470,0.46944128,3073.1,3072.5,3.25459]
[1720510850677,0.06030147,3072.7,3072.4,3.25477]
[1720510850873,1.82344357,3073.1,3072.4,3.25477]
[1720510851070,0.06029876,3072.6,3072.4,3.25477]
[1720510851305,0.385665,3073.0,3072.5,3.25467]
[1720510851596,2.54828284,3072.9,3072.5,3.25467]
[1720510851774,0.385665,3073.0,3072.5,3.25467]
[1720510852097,2.54827774,3072.9,3072.5,3.25467]
[1720510852313,0.46944128,3073.1,3072.5,3.25467]
[1720510852500,2.54828432,3073.0,3072.5,3.25467]
[1720510852662,2.54828432,3072.9,3072.5,3.25467]
[1720510852867,0.46944128,3073.1,3072.5,3.25467]
[1720510853200,3.03063229,3073.0,3071.9,3.25521]
[1720510853363,3.03063229,3073.0,3071.7,2.765049]
[1720510853364,8.86142327,3072.9,3071.7,3.25546]
[1720510853705,1.35400229,3072.5,3071.8,3.25539]
[1720510853924,2.54880515,3072.4,3071.8,3.25539]
[1720510854199,2.54880515,3072.3,3071.5,3.25564]
[1720510854363,5.54880515,3072.2,3071.1,3.2561]
[1720510854563,2.54880515,3072.1,3071.4,3.25575]
[1720510854759,2.54880515,3072.0,3071.4,3.25575]
[1720510854962,2.54880515,3071.9,3071.4,3.25575]
[1720510855180,0.69028074,3072.0,3071.4,3.25575]
[1720510855394,0.69028074,3072.0,3071.3,3.25588]
[1720510855395,1.42118004,3071.9,3071.5,3.25573]
[1720510856225,3.54763128,3071.8,3071.0,3.25625]
[1720510856523,1.56514837,3071.8,3071.1,3.25615]
[1720510856710,5.54943683,3071.7,3071.2,3.25601]
[1720510856891,2.54943683,3071.6,3071.2,3.25601]
[1720510857228,0.21114608,3071.8,3071.2,3.25601]
[1720510857391,2.54946804,3071.7,3071.2,3.25601]
[1720510857592,2.54946804,3071.6,3071.2,3.25601]
[1720510857797,1.56514837,3071.8,3071.2,3.25601]
[1720510857798,0.21114608,3071.8,3071.2,3.25601]
[1720510858101,2.54932915,3071.7,3071.2,3.25601]
[1720510858301,1.42131324,3071.6,3071.2,3.25601]
[1720510858533,3.21114608,3071.8,3071.2,3.25601]
[1720510858718,2.54934932,3071.7,3071.2,3.25601]
[1720510858922,1.42131865,3071.6,3071.2,3.25601]
[1720510859123,3.21114608,3071.8,3071.2,3.25601]
[1720510859339,3.0058698,3071.7,3071.0,3.25625]
[1720510859498,2.54935496,3071.6,3070.9,3.25637]
[1720510859833,1.72190864,3071.5,3070.9,3.25637]
[1720510860025,0.30058698,3071.5,3070.9,3.25637]
[1720510860219,0.30058698,3071.5,3070.8,3.25641]
[1720510860220,0.30058698,3071.5,3070.7,3.25651]
[1720510860541,2.54961651,3071.4,3070.4,3.2568]
[1720510860693,2.54961651,3071.4,3070.4,0.56583]
[1720510860694,1.42146761,3071.3,3070.4,0.56583]
[1720510860897,1.42146761,3071.3,3070.1,0.06512158]
[1720510860898,1.42146761,3071.3,3070.7,3.25656]
[1720510861103,1.42146761,3071.3,3070.8,3.25647]
[1720510861502,1.42146761,3071.3,3070.9,0.06512158]
[1720510861698,1.35400229,3071.7,3071.2,3.25605]
[1720510861998,1.69249928,3071.9,3071.2,3.25605]
[1720510861999,2.54950401,3071.6,3071.2,3.25605]
[1720510862237,1.42140489,3071.5,3071.2,3.25605]
[1720510862540,1.35400229,3071.8,3071.2,3.25605]
[1720510862541,3.0,3071.7,3071.2,3.25605]
[1720510862699,2.54947848,3071.6,3071.2,3.25605]
[1720510862905,1.42137732,3071.5,3071.2,3.321162]
[1720510863250,3.0,3071.7,3071.4,3.25575]
[1720510863403,8.71368695,3072.0,3071.5,0.06510912]
[1720510863624,1.42126098,3071.9,3071.5,0.06510912]
[1720510863827,1.42126098,3071.9,3071.6,3.25553]
[1720510864151,1.35368695,3072.2,3071.6,3.25552]
[1720510864352,2.54903597,3072.1,3071.6,3.25552]
[1720510864521,2.54903597,3072.0,3071.6,3.25552]
[1720510864854,21.20368695,3072.3,3071.7,3.25548]
[1720510865014,5.54905899,3072.2,3071.7,3.25548]
[1720510865211,2.54905899,3072.1,3071.7,3.25548]
[1720510865450,5.54905899,3072.0,3071.7,3.25548]
[1720510865655,4.35368695,3072.2,3071.7,3.25548]
[1720510865876,2.54906011,3072.1,3071.6,3.25553]
[1720510866034,1.42115702,3072.0,3071.6,3.25553]
[1720510866370,21.20368695,3072.3,3071.8,6.5107]
[1720510866544,2.54883012,3072.2,3071.9,0.0650975]
[1720510866748,1.69249656,3072.6,3071.9,0.0650975]
[1720510866749,1.35368695,3072.6,3072.2,3.25492]
[1720510866921,1.42098591,3072.5,3072.3,3.25479]
[1720510867121,1.42098591,3072.5,3072.2,3.25492]
[1720510867122,1.35368695,3072.8,3072.4,3.25475]
[1720510867315,2.54855075,3072.7,3072.2,3.25492]
[1720510867519,1.42087369,3072.6,3072.2,3.25492]
[1720510867747,1.35368695,3072.9,3072.3,3.25481]
[1720510867951,2.54850969,3072.8,3071.2,2.2651]
[1720510868152,1.35368695,3072.5,3071.8,3.25535]
[1720510868453,3.90219664,3072.4,3071.6,3.25555]
[1720510868687,6.90219664,3072.3,3071.6,3.25555]
[1720510868860,1.42103634,3072.2,3071.8,3.25541]
[1720510869042,1.42103634,3072.2,3072.1,3.2551]
[1720510869246,4.69256756,3072.7,3072.1,7.161159]
[1720510869247,4.35368695,3072.7,3072.1,7.161159]
[1720510869447,2.54863979,3072.6,3072.2,3.25499]
[1720510869646,4.35368695,3072.7,3072.2,3.25499]
[1720510869647,5.54863979,3072.5,3072.2,3.25499]
[1720510869972,1.42092307,3072.4,3072.2,3.25499]
[1720510870283,1.42092307,3072.4,3072.0,3.25514]
[1720510870485,2.54869501,3072.3,3071.2,2.66191]
[1720510870806,2.54874592,3072.2,3071.5,3.25565]
[1720510870962,2.54874592,3072.1,3071.5,3.25565]
[1720510871283,2.54874592,3072.0,3071.5,3.25565]
[1720510871485,1.42092307,3071.9,3071.6,3.25562]
[1720510871979,1.35368695,3072.2,3071.8,3.2554]
[1720510872188,1.42108868,3072.1,3071.8,3.2554]
[1720510872365,3.0,3072.3,3071.8,3.2554]
[1720510872688,2.54893897,3072.2,3071.8,3.2554]
[1720510872848,1.42108987,3072.1,3071.9,3.25527]
[1720510873054,3.0,3072.3,3072.1,3.25502]
[1720510873285,1.42099167,3072.2,3071.9,3.25527]
[1720510873485,3.0,3072.4,3072.1,3.25503]
[1720510873666,1.42095455,3072.3,3072.1,3.25503]
[1720510873862,3.0,3072.5,3071.9,3.25527]
[1720510873863,3.0,3072.5,3071.9,6.51049]
[1720510874063,2.54871387,3072.4,3071.9,3.25522]
[1720510874277,5.54871387,3072.3,3071.6,3.25555]
[1720510874454,2.54871387,3072.2,3071.6,3.25555]
[1720510874653,2.62912718,3072.4,3071.5,3.25573]
[1720510874654,1.42095688,3072.1,3071.7,3.2555]
[1720510874855,3.0,3072.3,3071.7,3.2555]
[1720510875052,2.54886167,3072.2,3071.7,3.2555]
[1720510875297,0.73225934,3072.3,3071.7,3.2555]
[1720510875453,1.12782206,3072.2,3071.7,3.2555]
[1720510875649,1.42105558,3072.1,3071.8,3.2554]
[1720510875889,2.62912718,3072.4,3071.8,3.2554]
[1720510876071,2.54885395,3072.3,3071.8,3.2554]
[1720510876386,1.27544023,3072.4,3071.8,3.2554]
[1720510876387,1.42104247,3072.2,3071.8,3.2554]
[1720510876690,1.42104247,3072.1,3071.8,3.2554]
[1720510876897,2.62912718,3072.4,3071.8,3.2554]
[1720510877052,5.54885261,3072.3,3071.8,3.2554]
[1720510877396,2.54885261,3072.2,3071.8,3.2554]
[1720510877698,1.42104172,3072.1,3071.8,3.25534]
[1720510877998,3.81779798,3072.3,3071.3,2.3728]
[1720510877999,3.81779798,3072.3,3071.9,3.25531]
[1720510878195,2.54881354,3072.2,3071.9,3.25531]
[1720510878414,2.54881354,3072.1,3071.7,3.25545]
[1720510878639,0.06000619,3072.2,3071.8,3.25531]
[1720510878786,0.06000076,3072.0,3071.8,3.25531]
[1720510879121,1.35368695,3072.5,3071.8,6.51073]
[1720510879122,0.05999804,3071.9,3071.8,6.51073]
[1720510879285,4.35368695,3072.5,3072.0,3.25517]
[1720510879484,2.54875197,3072.4,3072.0,3.25517]
[1720510879799,5.54875197,3072.3,3072.0,3.25517]
[1720510879982,1.42098614,3072.2,3072.0,3.25517]
[1720510880421,3.0,3072.4,3072.0,3.25517]
[1720510880620,2.54873021,3072.3,3072.0,3.25517]
[1720510880830,2.54873021,3072.2,3072.1,3.2551]
[1720510881026,3.0,3072.5,3072.2,3.25493]
[1720510881209,2.54869746,3072.4,3072.2,3.25493]
[1720510881382,2.54869746,3072.3,3072.2,3.25493]
[1720510881577,2.54869746,3072.3,3071.3,3.25588]
[1720510881886,2.54869746,3072.2,3071.8,3.25533]
[1720510882114,1.35368695,3072.5,3071.8,3.25533]
[1720510882343,1.35368695,3072.3,3071.4,3.25574]
[1720510882629,3.90271292,3072.2,3071.6,3.25563]
[1720510882793,1.35368695,3072.0,3071.2,3.256]
[1720510882995,1.35368695,3071.7,3070.7,3.25651]
[1720510883195,1.35368695,3071.5,3070.6,3.25659]
[1720510883411,2.54922885,3071.4,3070.8,3.25646]
[1720510883626,2.54922885,3071.3,3070.6,3.25659]
[1720510883831,3.9029158,3071.2,3070.3,3.49707]
[1720510884134,3.9029158,3071.1,3070.3,3.49707]
[1720510884338,0.84644779,3071.2,3070.3,3.49707]
[1720510884339,2.54922885,3071.0,3070.4,3.25687]
[1720510884533,2.54922885,3070.9,3070.4,3.25687]
[1720510884831,2.54922885,3070.8,3070.4,3.25687]
[1720510885039,1.35368695,3071.1,3070.4,3.25687]
[1720510885338,2.54998392,3071.0,3070.4,3.25687]
[1720510885523,2.54998392,3070.9,3070.5,3.25678]
[1720510885726,3.63714053,3071.1,3070.5,3.25678]
[1720510886040,2.54994284,3071.0,3070.5,3.25678]
[1720510886245,1.42164955,3070.9,3070.5,3.25678]
[1720510886412,1.12829329,3070.8,3070.1,3.25718]
[1720510886607,1.12829329,3070.8,3070.3,3.25694]
[1720510886851,4.99125429,3071.1,3070.3,0.06513145]
[1720510886852,1.12829329,3071.0,3070.3,0.06513145]
[1720510887157,1.12829329,3071.0,3070.6,3.2566]
[1720510887307,1.12829329,3071.0,3070.7,3.25658]
[1720510887508,1.35411376,3071.4,3071.0,3.25617]
[1720510887723,0.12821297,3071.3,3071.0,3.25618]
[1720510888008,3.34050584,3071.5,3071.2,3.25599]
[1720510888235,3.34050584,3071.5,3071.2,6.51196]
[1720510888409,0.34050584,3071.5,3071.2,3.25597]
[1720510888920,0.34050584,3071.5,3071.0,3.25626]
[1720510888921,1.42141026,3071.4,3071.0,3.25626]
[1720510889917,1.42141026,3071.4,3070.8,3.25641]
[1720510890216,1.42141026,3071.4,3070.8,4.174783]
[1720510890410,1.42141026,3071.4,3070.4,3.25685]
[1720510890619,1.42141026,3071.4,3069.8,10.40121]
[1720510890620,2.2982,3071.3,3070.2,3.25707]
[1720510890805,2.77552402,3071.2,3070.2,3.25707]
[1720510891036,6.98955519,3071.3,3070.2,3.25702]
[1720510891037,2.77552402,3071.1,3070.2,3.25702]
[1720510891238,1.42141026,3071.0,3070.2,3.582722]
[1720510891413,1.42141026,3070.9,3070.3,3.25692]
[1720510891614,3.0,3071.1,3070.4,3.25688]
[1720510891820,1.42168731,3071.0,3070.4,3.25688]
[1720510892015,3.0,3071.2,3070.4,3.94735339]
[1720510892357,3.0,3071.2,3070.8,3.25646]
[1720510892654,2.2982,3071.3,3070.8,3.25646]